[Event "55th Biel Festival ATO 2022"]
[Site "Biel"]
[Date "2022.07.19"]
[Round "6.4"]
[White "Altok, Mesut"]
[Black "Wanner Stefan"]
[Result "1-0"]
[ECO "D70"]
[WhiteElo "1890"]
[BlackElo "1975"]
[Annotator "TA"]
[PlyCount "67"]
[EventDate "2022.07.13"]
[EventType "swiss"]
[EventCountry "SUI"]
[SourceTitle "playchess.com"]
[Source "ChessBase"]
[SourceQuality "1"]
[TimeControl "40/5400+30:1800+30"]

{[%evp 9,67,25,29,12,30,-60,-9,-24,0,-8,39,20,59,0,10,0,39,0,61,14,59,31,21,30,66,47,65,28,84,85,77,85,89,93,176,165,162,182,179,63,198,200,441,449,808,788,1283,1219,1451,1402,1450,1425,1727,1315,1164,891,29984,29985,29989,29990]} 1. d4 {[%emt 0:04:39]} Nf6 {[%emt 0:00:16]} 2. Nf3 {[%emt 0:00:09]} g6 {[%emt 0:00:17]} 3. Nbd2 {[%emt 0:00:44]} d5 {[%emt 0:00:47]} 4. c4 {[%emt 0:00:41]} c6 {[%emt 0:00:38]} 5. e3 {[%emt 0:00:38]} Bg7 {[%emt 0:00:23][%cal Oc6c5] [#]} 6. a4 $146 {[%emt 0:00:16] D70: Grünfeld: Unusual White 3rd moves (met by ...d5).} ({Predecessor:} 6. Be2 O-O 7. O-O a5 8. h3 a4 9. b4 axb3 10. Qxb3 dxc4 11. Bxc4 b5 12. Be2 Be6 13. Qc2 Nd5 14. a3 Qb6 15. Nb3 {1-0 (42) Mamedyarov,S (2762)-Vachier Lagrave,M (2763) chess24.com INT 2021}) 6... O-O {[%emt 0:01:06][%cal Oc6c5]} 7. Bd3 {[%emt 0:00:23]} ({Better is} 7. b4 $11) 7... Nbd7 {[%emt 0:04:17]} (7... c5 $15) 8. cxd5 {[%emt 0:00:36] The position is equal.} (8. O-O {looks sharper.} e5 9. dxe5 Ng4 10. cxd5 Ndxe5 11. Be2) 8... cxd5 {[%emt 0:00:18]} 9. b4 {[%emt 0:00:14]} b6 {[%emt 0:03:47]} (9... e5 $11 {might be stronger.} 10. dxe5 (10. Nxe5 Nxe5 11. dxe5 Ng4 $15) 10... Ng4) 10. Bb2 {[%emt 0:00:20]} Bb7 {[%emt 0:00:26]} 11. h4 {[%emt 0:01:53]} (11. a5 $14) 11... h5 {[%emt 0:00:50]} 12. Qb1 {[%emt 0:00:38]} Re8 {[%emt 0:08:50][%cal Oe7e5]} 13. Ne5 {[%emt 0:10:51]} Nf8 {[%emt 0:08:06]} (13... e6 $11) 14. f3 {[%emt 0:00:35] White is more active.} (14. a5 $14) 14... N6d7 {[%emt 0:10:16]} 15. f4 {[%emt 0:00:40]} (15. g4 {keeps more tension.} hxg4 16. h5 gxh5 17. fxg4 Qc8 18. Rh4) 15... Nxe5 {[%emt 0:02:59]} 16. fxe5 {[%emt 0:06:48]} Qd7 {[%emt 0:01:47]} 17. O-O {[%emt 0:00:28]} Bh6 {[%emt 0:02:02]} 18. Qe1 {[%emt 0:01:15]} Qe6 {[%emt 0:04:27]} (18... Ne6 $11) 19. Qg3 {[%emt 0:06:15] [#] Hoping for Bf5.} Qg4 {[%emt 0:07:44] Inhibits Bf5.} 20. Qf2 {[%emt 0:00:27]} Qe6 {[%emt 0:00:12]} 21. a5 {[%emt 0:01:53]} bxa5 {[%emt 0:04:21] [#]} (21... Rec8 $16) 22. Nb3 $1 $18 {[%emt 0:00:46][%cal Bd2b3,Bb3a5,Ba5c6,Bc6e7][%mdl 32] Black must now prevent Nc5.} ({Worse is} 22. bxa5 Rec8 $11) ({Don't play} 22. Rxa5 $6 Nd7 $16) 22... Nd7 {[%emt 0:04:20]} (22... axb4 $2 23. Nc5 Qg4 24. Nxb7 $18) 23. Nxa5 {[%emt 0:02:23]} Rab8 {[%emt 0:03:36][%cal Od7f6]} 24. b5 {[%emt 0:01:58]} ({White should try} 24. Bc1 $18) 24... Rf8 {[%emt 0:00:59] A mistake that costs the game.} (24... Nf6 $1 $14) 25. Bc1 {[%emt 0:04:10]} Bc8 $2 {[%emt 0:07:43]} (25... Rfc8 26. Bd2 Kg7) 26. Nc6 {[%emt 0:03:36]} Ra8 {[%emt 0:01:39]} (26... Bb7 $142 27. Nxb8 Rxb8 28. Rxa7 Nb6) 27. e4 {[%emt 0:05:47][%cal Be3e4,Be4d5][%mdl 32]} Bxc1 {[%emt 0:00:41]} 28. exd5 {[%emt 0:00:07]} Qg4 {[%emt 0:01:24]} 29. Nxe7+ {[%emt 0:00:53]} Kh7 {[%emt 0:01:29]} 30. Raxc1 {[%emt 0:02:52]} Kg7 {[%emt 0:03:31]} 31. Rxc8 {[%emt 0:03:22]} Raxc8 {[%emt 0:00:48]} 32. Nxc8 {[%emt 0:00:07]} Nxe5 {[%emt 0:00:14]} 33. dxe5 {[%emt 0:02:40]} Qxc8 {[%emt 0:00:15]} 34. Qf6+ {[%emt 0:00:15] Weighted Error Value: White=0.29 (precise) /Black=0.64} 1-0

[Event "55th Biel Festival ATO 2022"]
[Site "Biel"]
[Date "2022.07.19"]
[Round "6.5"]
[White "Arndt Uwe"]
[Black "Python, Noe"]
[Result "1-0"]
[ECO "D30"]
[WhiteElo "1964"]
[BlackElo "1890"]
[Annotator "TA"]
[PlyCount "86"]
[EventDate "2022.07.13"]
[EventType "swiss"]
[EventCountry "SUI"]
[SourceTitle "playchess.com"]
[Source "ChessBase"]
[SourceQuality "1"]
[TimeControl "40/5400+30:1800+30"]

{[%evp 9,86,0,4,0,25,26,28,28,25,25,35,0,3,7,1,0,0,-27,0,0,0,0,8,9,0,-18,123,101,112,102,122,116,116,49,32,20,31,16,18,16,16,16,16,16,16,16,16,19,18,11,36,11,11,0,143,143,196,191,173,173,170,115,272,272,389,94,270,270,689,708,668,668,676,675,659,655,808,799,700]} 1. d4 {[%emt 0:00:04]} d5 {[%emt 0:00:04]} 2. c4 {[%emt 0:00:07]} e6 {[%emt 0:00:03]} 3. Nf3 {[%emt 0:00:25]} a6 {[%emt 0:00:06]} 4. cxd5 {[%emt 0:02:32]} exd5 {[%emt 0:00:09]} 5. Qc2 {[%emt 0:00:23]} Nf6 {[%emt 0:05:55]} 6. Bg5 {[%emt 0:00:29] D30: Queen's Gambit Declined: Systems without Nc3.} c6 {[%emt 0:02:01]} 7. Nc3 {[%emt 0:02:59]} Be6 {[%emt 0:02:22]} 8. e3 {[%emt 0:01:17] White has an edge.} Bd6 {[%emt 0:01:35]} 9. Bd3 {[%emt 0:01:17][%cal Od3h7]} h6 {[%emt 0:01:55]} 10. Bh4 {[%emt 0:01:45]} Nbd7 {[%emt 0:00:25]} 11. O-O {[%emt 0:04:35]} O-O {[%emt 0:00:13]} 12. Rab1 {[%emt 0:08:47]} Qc7 {[%emt 0:00:29] [#]} 13. Na4 $146 {[%emt 0:05:47]} ({Predecessor:} 13. Rfc1 Bg4 14. Bg3 Bxf3 15. gxf3 Rfe8 16. b4 Nb6 17. b5 Bxg3 18. hxg3 axb5 19. Nxb5 {1-0 (58) Omelja,A (2515)-Kosakowski,J (2442) Chess.com INT 2022}) 13... Bg4 {[%emt 0:07:18]} (13... Ne4 $5) 14. Bg3 {[%emt 0:00:32]} Bxg3 {[%emt 0:01:11]} 15. hxg3 {[%emt 0:00:45]} Rfe8 {[%emt 0:01:33]} 16. Rfc1 {[%emt 0:03:30]} b5 {[%emt 0:12:13]} 17. Nc5 {[%emt 0:02:06]} Nb6 {[%emt 0:02:13]} (17... Nxc5 $1 $11 18. dxc5 (18. Qxc5 Bxf3 19. gxf3 Rxe3 $11) 18... a5) 18. b3 {[%emt 0:02:15]} Nbd7 {[%emt 0:08:04]} 19. Nxd7 {[%emt 0:08:21]} Bxd7 {[%emt 0:00:03]} 20. Ne5 {[%emt 0:05:34]} Rac8 {[%emt 0:00:38][%cal Oc6c5] [#]} 21. Nxd7 {[%emt 0:01:41] White is more active.} (21. a4 $1 $16) 21... Nxd7 $14 {[%emt 0:01:13]} 22. Bf5 {[%emt 0:02:28][%cal Oc2c6]} Qd6 {[%emt 0:04:42]} 23. Rb2 {[%emt 0:01:44][%cal Bb1b2,Bb2c2,Bc2c5][%mdl 32]} g6 {[%emt 0:04:09]} 24. Bxd7 {[%emt 0:00:51]} Qxd7 {[%emt 0:03:07]} 25. Qc5 {[%emt 0:00:27]} Qb7 {[%emt 0:03:31]} 26. Rbc2 {[%emt 0:02:14]} Re6 {[%emt 0:06:03]} 27. Qa3 {[%emt 0:03:15]} Qb6 {[%emt 0:11:01]} 28. Rc5 {[%emt 0:00:29] aiming for Rxd5.} Rd8 {[%emt 0:00:58]} 29. b4 {[%emt 0:01:49]} Kg7 {[%emt 0:03:43]} 30. Qc3 {[%emt 0:00:25][%cal Rc5c6]} Rdd6 {[%emt 0:00:28]} 31. f3 {[%emt 0:01:04][%cal Oe3e4,Bf2f3,Bf3f4][%mdl 32]} Qb7 {[%emt 0:02:01] [#]} (31... Kg8 $11 {keeps the balance.}) 32. e4 $1 $16 {[%emt 0:01:36][%cal Be3e4,Be4e5][%mdl 32]} Qb6 {[%emt 0:05:04]} (32... f6 $16) 33. e5 $18 {[%emt 0:01:39]} Rd8 {[%emt 0:01:06]} 34. f4 {[%emt 0:00:39]} h5 {[%emt 0:03:37]} 35. Qf3 {[%emt 0:01:30]} ({White should try} 35. Rxc6 $18 Rxc6 36. Qxc6 Qxd4+ 37. Kh2) 35... f5 $2 {[%emt 0:01:02]} (35... Rh8 $16) 36. Qc3 {[%emt 0:04:47]} Qa7 {[%emt 0:06:46]} (36... h4 {might work better.} 37. gxh4 Rc8) 37. Kf2 $2 {[%emt 0:00:27]} (37. Rxc6 $18 {is more deadly.} Qe7 38. Qa3 Rxc6 39. Rxc6) 37... Rh8 $2 {[%emt 0:00:37]} (37... Rb8 $16 {keeps fighting.}) 38. Ke3 {[%emt 0:02:03]} ({And not} 38. Rxc6 Rxc6 39. Qxc6 Qxd4+ 40. Kf1 Kh6 $11) 38... h4 $2 {[%emt 0:01:05]} (38... Rc8 39. Rxd5 Kh6) 39. Rxc6 {[%emt 0:00:23] White is clearly winning.} Rxc6 {[%emt 0:00:29]} 40. Qxc6 {[%emt 0:00:09] Intending Qf6+ and mate.} Qe7 {[%emt 0:00:33] Prevents Qf6+.} 41. Qc7 {[%emt 0:33:31]} Re8 {[%emt 0:01:54]} 42. gxh4 {[%emt 0:00:00]} Kh6 {[%emt 0:00:09]} 43. Qxe7 {[%emt 0:00:00]} Rxe7 {[%emt 0:00:02] Weighted Error Value: White=0.20 (precise) /Black=0.48} 1-0

[Event "55th Biel Festival ATO 2022"]
[Site "Biel"]
[Date "2022.07.19"]
[Round "6.6"]
[White "Mirski, Michal"]
[Black "Smeets Kobe"]
[Result "1-0"]
[ECO "E09"]
[WhiteElo "1868"]
[BlackElo "1963"]
[Annotator "TA"]
[PlyCount "87"]
[EventDate "2022.07.13"]
[EventType "swiss"]
[EventCountry "SUI"]
[SourceTitle "playchess.com"]
[Source "ChessBase"]
[SourceQuality "1"]
[TimeControl "40/5400+30:1800+30"]

{[%evp 24,87,18,26,36,25,24,21,127,25,24,16,28,29,54,28,36,29,30,32,56,31,47,29,200,204,164,159,212,211,222,222,218,223,318,240,485,515,483,466,502,295,291,273,279,268,315,275,445,433,704,704,686,697,640,680,716,726,1976,1942,1900,1800,5314,5243,3259,2535]} 1. c4 {[%emt 0:00:55]} e6 {[%emt 0:00:11]} 2. g3 {[%emt 0:00:29]} d5 {[%emt 0:00:14]} 3. Bg2 {[%emt 0:00:09]} Nf6 {[%emt 0:01:52]} 4. Nf3 {[%emt 0:00:30]} c6 {[%emt 0:02:16]} 5. O-O {[%emt 0:02:55]} Be7 {[%emt 0:01:03]} 6. d4 {[%emt 0:03:54]} O-O {[%emt 0:00:10]} 7. Nbd2 {[%emt 0:00:38]} Nbd7 {[%emt 0:00:43]} 8. b3 {[%emt 0:00:31]} b6 {[%emt 0:00:13]} 9. Bb2 {[%emt 0:00:14]} Bb7 {[%emt 0:00:09]} 10. Qc2 {[%emt 0:03:02]} Rc8 {[%emt 0:03:28]} 11. e4 {[%emt 0:02:29]} dxe4 {[%emt 0:03:56]} 12. Nxe4 {[%emt 0:00:15]} Nxe4 {[%emt 0:00:49]} 13. Qxe4 {[%emt 0:00:04]} Nf6 {[%emt 0:00:17]} 14. Qe2 {[%emt 0:00:26]} c5 {[%emt 0:02:43]} 15. Rad1 {[%emt 0:05:02]} Qc7 {[%emt 0:03:11] [#]} (15... cxd4 $11 {remains equal.} 16. Rxd4 (16. Nxd4 Bxg2 17. Kxg2 Qc7 $11) 16... Qc7) 16. dxc5 {[%emt 0:02:48]} (16. d5 $1 $16) 16... Qxc5 {[%emt 0:00:42]} 17. Ne5 {[%emt 0:00:46]} Bxg2 {[%emt 0:09:40]} 18. Kxg2 {[%emt 0:00:08]} Rfd8 {[%emt 0:40:38]} 19. Qf3 {[%emt 0:04:53]} Bd6 {[%emt 0:02:05]} 20. Rfe1 {[%emt 0:14:44]} Qc7 {[%emt 0:00:34]} 21. Re3 {[%emt 0:07:41]} Bc5 {[%emt 0:07:38] [#] Strongly threatening ...Rxd1.} 22. Red3 $36 {[%emt 0:04:09][%cal Od3d7][%mdl 2048] White has good play.} Rxd3 {[%emt 0:01:03]} 23. Rxd3 {[%emt 0:03:35][%cal Od3d7] Black must now prevent Rd7!} Rd8 {[%emt 0:05:59] Inhibits Rd7. This move loses the game for Black.} (23... Bd6 $11 24. Qd1 Be7) 24. Rxd8+ $18 {[%emt 0:08:55]} Qxd8 {[%emt 0:00:02]} 25. Qb7 {[%emt 0:00:42][%csl LRa7,LRf7] Against Qc8} Qe8 {[%emt 0:02:35]} (25... Qe7 $16 26. Qa8+ Ne8) 26. Qxa7 {[%emt 0:02:31]} Ne4 {[%emt 0:00:56]} 27. f3 {[%emt 0:02:03]} Nd6 {[%emt 0:01:06]} 28. Qd7 {[%emt 0:08:46]} Qa8 {[%emt 0:02:37]} (28... Qxd7 $142 29. Nxd7 Be3) 29. a3 {[%emt 0:00:46] aiming for b4.} Qf8 $2 {[%emt 0:03:12]} (29... Qe8 {was worth a try.} 30. Qxe8+ Nxe8) 30. b4 {[%emt 0:05:25]} Be3 {[%emt 0:00:06]} 31. Bc3 {[%emt 0:04:40]} Nf5 {[%emt 0:02:07]} 32. g4 {[%emt 0:06:07]} Nh4+ {[%emt 0:00:56]} 33. Kg3 {[%emt 0:02:32]} Ng6 {[%emt 0:01:17] And now ...Bf4+ would win.} 34. Nc6 {[%emt 0:01:25]} Bf4+ {[%emt 0:00:47]} 35. Kg2 {[%emt 0:01:54] Threatens to win with Bd4.} Nh4+ $2 {[%emt 0:00:34]} (35... h6 36. a4 Bg5) 36. Kf2 {[%emt 0:00:12] White is clearly winning.} Bxh2 {[%emt 0:00:37]} (36... h5 $142 37. Bd4 (37. gxh5 Nf5 $18) 37... hxg4 38. fxg4 f5) 37. Ne7+ {[%emt 0:01:33]} Kh8 {[%emt 0:00:38]} 38. Qc8 {[%emt 0:00:20] Active counter play!} Qxc8 {[%emt 0:01:02]} 39. Nxc8 {[%emt 0:00:05] KBN-KBN} Ng6 {[%emt 0:01:12]} 40. Nxb6 {[%emt 0:00:56]} Ne5 {[%emt 0:00:36]} 41. Bxe5 {[%emt 0:30:48]} Bxe5 {[%emt 0:30:07]} 42. c5 {[%emt 0:00:22]} Bb2 {[%emt 0:00:40]} 43. Nc4 {[%emt 0:00:06]} Bd4+ {[%emt 0:00:24]} 44. Kg2 {[%emt 0:00:29] Weighted Error Value: White=0.23 (precise) /Black=0.59} 1-0

[Event "55th Biel Festival ATO 2022"]
[Site "Biel"]
[Date "2022.07.19"]
[Round "6.7"]
[White "Carey, Michael"]
[Black "Manmay Chopra"]
[Result "0-1"]
[ECO "E62"]
[WhiteElo "1816"]
[BlackElo "1934"]
[Annotator "TA"]
[PlyCount "126"]
[EventDate "2022.07.13"]
[EventType "swiss"]
[EventCountry "SUI"]
[SourceTitle "playchess.com"]
[Source "ChessBase"]
[SourceQuality "1"]
[TimeControl "40/5400+30:1800+30"]

{[%evp 18,126,35,33,39,30,44,-17,-25,-20,-8,-32,-44,-47,-47,-50,-53,-74,-74,-74,-74,-73,-74,-68,-66,-68,-50,-56,-61,-60,-54,-43,-49,-52,-43,-39,-23,-40,-37,-41,-43,-38,-37,-44,-37,-41,-31,-33,-34,-54,-48,-48,-48,-48,-48,-48,-25,-48,-48,-48,-48,-66,-56,-63,-48,-48,-48,-48,-48,-48,-48,-48,-45,-52,-52,-52,-52,-65,-52,-52,-35,-96,-92,-101,-121,-120,-76,-76,-36,-36,0,-19,-19,-19,-19,-116,-116,-116,-116,-640,-587,-919,-870,-789,-759,-641,-597,-1026,-1006,-29975,-29976]} 1. Nf3 {[%emt 0:00:01]} Nf6 {[%emt 0:00:12]} 2. c4 {[%emt 0:00:01]} g6 {[%emt 0:00:06]} 3. d4 {[%emt 0:00:03]} Bg7 {[%emt 0:00:04]} 4. g3 {[%emt 0:00:06]} d6 {[%emt 0:00:05]} 5. Bg2 {[%emt 0:00:02]} O-O {[%emt 0:00:08]} 6. O-O {[%emt 0:00:04]} Nc6 {[%emt 0:00:04]} 7. Nc3 {[%emt 0:00:08]} e5 {[%emt 0:00:06]} 8. dxe5 {[%emt 0:00:49]} dxe5 {[%emt 0:00:26]} 9. Bg5 {[%emt 0:03:05]} Be6 {[%emt 0:00:22]} 10. Nd2 {[%emt 0:03:44][%cal Oc3d5]} h6 {[%emt 0:00:56]} 11. Bxf6 {[%emt 0:00:58]} Qxf6 {[%emt 0:02:38]} 12. Nd5 {[%emt 0:05:15]} (12. Nde4 $14 Qe7 13. Nd5) 12... Qd8 $1 $11 {[%emt 0:00:53] The position is equal.} 13. Ne4 {[%emt 0:16:27]} Nd4 {[%emt 0:25:43]} 14. Nc5 {[%emt 0:07:30]} (14. e3 {keeps more tension.} c6 15. exd4 cxd5 16. cxd5 Bxd5 17. dxe5 Bxe5 18. Qxd5 Qxd5 19. Nf6+) 14... Bc8 {[%emt 0:02:07]} 15. e3 {[%emt 0:01:29]} Ne6 {[%emt 0:01:05]} 16. Nxe6 {[%emt 0:03:30]} Bxe6 {[%emt 0:00:05]} 17. Qe2 {[%emt 0:03:03]} c6 {[%emt 0:01:01]} 18. Nc3 {[%emt 0:00:11]} f5 {[%emt 0:00:43]} 19. Rfd1 {[%emt 0:06:09]} Qe7 {[%emt 0:01:42]} 20. b3 {[%emt 0:02:13]} e4 {[%emt 0:03:17]} 21. Rac1 {[%emt 0:02:00]} Rad8 {[%emt 0:01:42]} 22. Qc2 {[%emt 0:00:50]} Be5 {[%emt 0:11:43]} 23. Ne2 {[%emt 0:03:18]} Rxd1+ {[%emt 0:00:58]} 24. Rxd1 {[%emt 0:00:28]} Rd8 {[%emt 0:00:11]} 25. Rd2 {[%emt 0:01:31]} Rxd2 {[%emt 0:06:21]} 26. Qxd2 {[%emt 0:00:02]} Qd7 {[%emt 0:06:30]} 27. Qxd7 {[%emt 0:01:06]} Bxd7 {[%emt 0:01:36][%mdl 4096] Endgame KBB-KBN} 28. f3 {[%emt 0:04:04]} exf3 {[%emt 0:00:14]} 29. Bxf3 {[%emt 0:00:02]} g5 {[%emt 0:01:26][%cal Bg6g5,Bg5g4][%mdl 32]} 30. Kf2 {[%emt 0:02:25]} Kf7 {[%emt 0:00:13]} 31. Nc1 {[%emt 0:01:08]} Ke7 {[%emt 0:01:36]} 32. Nd3 {[%emt 0:00:20]} Bc3 {[%emt 0:00:17]} 33. h4 {[%emt 0:11:56]} g4 {[%emt 0:02:48]} 34. Bg2 {[%emt 0:00:53]} Be8 {[%emt 0:02:04]} 35. Ke2 {[%emt 0:02:54]} Ba5 {[%emt 0:06:38]} 36. Kf2 {[%emt 0:03:50]} Kd6 {[%emt 0:01:14]} 37. Bh1 {[%emt 0:04:21]} Bd8 {[%emt 0:01:43]} 38. Bg2 {[%emt 0:00:19]} Bf6 {[%emt 0:00:27]} 39. Bh1 {[%emt 0:00:15]} a5 {[%emt 0:00:32]} 40. Bg2 {[%emt 0:03:59]} Bg6 {[%emt 0:01:43][%cal Of5f4]} 41. Nf4 {[%emt 0:33:22]} Bh7 {[%emt 0:30:32]} 42. Bf1 {[%emt 0:00:34]} Be5 {[%emt 0:01:21]} 43. Nd3 {[%emt 0:01:25]} Bc3 {[%emt 0:00:36]} 44. Nf4 {[%emt 0:00:00]} Bg8 {[%emt 0:00:00]} 45. Nd3 {[%emt 0:00:00]} b5 {[%emt 0:00:00]} 46. cxb5 {[%emt 0:00:00]} cxb5 {[%emt 0:00:00]} 47. Nc1 {[%emt 0:00:00]} Kc5 {[%emt 0:00:00] Hoping for ...Kb4.} 48. Nd3+ {[%emt 0:00:00]} Kb6 {[%emt 0:00:00] Threatens to win with ...a4.} 49. Be2 {[%emt 0:00:00]} (49. Nf4 $15) 49... Bd5 $1 $17 {[%emt 0:00:00]} 50. Bd1 {[%emt 0:00:00]} Be4 {[%emt 0:00:00]} 51. Be2 {[%emt 0:00:00]} b4 {[%emt 0:00:00]} 52. Bf1 {[%emt 0:00:00]} a4 {[%emt 0:00:00] Black is more active.} 53. Be2 {[%emt 0:00:00]} ({Of course not} 53. bxa4 Ka5 54. Nc5 Bd5 $17) 53... Bd2 {[%emt 0:00:00]} 54. Nb2 {[%emt 0:02:54]} axb3 {[%emt 0:00:00]} 55. axb3 {[%emt 0:02:17] Nc4+ is the strong threat.} Bc3 {[%emt 0:00:00] A strong pair of Bishops.} 56. Na4+ {[%emt 0:01:44]} (56. Nd3 $11) 56... Kc6 {[%emt 0:00:00]} 57. Bc4 {[%emt 0:02:05]} Be5 {[%emt 0:00:00]} 58. Bf7 $2 {[%emt 0:01:56][%mdl 8192] [#] This costs White the game.} (58. Be2 $17) 58... Bd5 $1 $19 {[%emt 0:02:42]} 59. Bxd5+ {[%emt 0:00:35]} Kxd5 {[%emt 0:00:04]} 60. Nb6+ {[%emt 0:00:17]} Ke4 {[%emt 0:00:15] Strongly threatening ...Kd3.} 61. Nd7 {[%emt 0:00:55]} Bd6 {[%emt 0:01:34] And now ...Kd3 would win.} 62. Nf6+ {[%emt 0:01:06] [#]} Kd3 $1 {[%emt 0:00:13]} 63. Ne8 {[%emt 0:01:41]} Be5 {[%emt 0:00:05] Weighted Error Value: White=0.53/Black=0.05 (flawless)} 0-1

[Event "55th Biel Festival ATO 2022"]
[Site "Biel"]
[Date "2022.07.19"]
[Round "6.8"]
[White "Hamad Bader"]
[Black "Abdulrahim, Salem"]
[Result "1-0"]
[ECO "B33"]
[WhiteElo "1918"]
[BlackElo "1662"]
[Annotator "TA"]
[PlyCount "95"]
[EventDate "2022.07.13"]
[EventType "swiss"]
[EventCountry "SUI"]
[SourceTitle "playchess.com"]
[Source "ChessBase"]
[SourceQuality "1"]
[TimeControl "40/5400+30:1800+30"]

{[%evp 28,95,45,46,45,17,50,-15,20,0,0,0,2,0,0,-45,-8,-33,0,23,47,46,44,41,46,50,133,120,129,132,130,128,138,133,123,130,127,93,120,107,110,108,100,59,217,206,233,240,237,241,2304,2254,12836,12837,12837,12837,12837,12825,12843,12843,12844,12844,12845,12843,12845,12845,12845,12846,12846,12847]} 1. e4 {[%emt 0:00:55]} c5 {[%emt 0:00:04]} 2. Nf3 {[%emt 0:00:04]} e6 {[%emt 0:00:06]} 3. d4 {[%emt 0:00:04]} cxd4 {[%emt 0:00:05]} 4. Nxd4 {[%emt 0:00:03]} Nf6 {[%emt 0:00:06]} 5. Nc3 {[%emt 0:00:05]} Nc6 {[%emt 0:00:06]} 6. Ndb5 {[%emt 0:00:07][%cal Bd4b5,Bb5a3,Ba3c2,Bc2e3,Be3d5][%mdl 32]} d6 {[%emt 0:00:09]} 7. Bf4 {[%emt 0:00:05]} e5 {[%emt 0:00:06]} 8. Bg5 {[%emt 0:00:07]} a6 {[%emt 0:00:06]} 9. Na3 {[%emt 0:00:05]} b5 {[%emt 0:00:05]} 10. Nd5 {[%emt 0:00:06]} Be7 {[%emt 0:00:07]} 11. Bxf6 {[%emt 0:00:05]} Bxf6 {[%emt 0:00:05]} 12. c3 {[%emt 0:00:05]} O-O {[%emt 0:00:23]} 13. Nc2 {[%emt 0:00:10]} Bg5 {[%emt 0:01:48]} 14. h4 {[%emt 0:03:07]} Bh6 {[%emt 0:00:06]} 15. g4 {[%emt 0:00:07]} f6 {[%emt 0:01:38] Inhibits g5. B33: Sicilian: Pelikan and Sveshnikov Variations.} 16. Nce3 {[%emt 0:01:08] [#] Pair of Knights!} Rb8 $146 {[%emt 0:04:36]} ({Predecessor:} 16... Bxe3 17. Nxe3 Ne7 18. Nf5 Bxf5 19. gxf5 d5 20. Qb3 Kh8 21. O-O-O d4 22. Kb1 Nc6 23. f4 Qd6 {1-0 (44) Tasnia Tarannum,O (1618)-Musfica Zannat,S (1361) Dhaka 2022}) 17. b4 {[%emt 0:11:16]} (17. Nf5 $14) 17... Ne7 {[%emt 0:08:19] The position is equal.} 18. Nxe7+ {[%emt 0:18:11]} Qxe7 {[%emt 0:00:53]} 19. Nd5 {[%emt 0:00:05]} Qb7 {[%emt 0:01:07]} 20. Rh3 {[%emt 0:06:18][%cal Bh1h3,Bh3d3,Bd3d5][%mdl 32]} Be6 {[%emt 0:05:14]} 21. Rd3 {[%emt 0:00:07]} Rbc8 {[%emt 0:02:43] White should prevent ...Bxd5.} 22. Qf3 {[%emt 0:03:01]} Bxd5 {[%emt 0:10:54]} (22... Kh8 $15) 23. Rxd5 $11 {[%emt 0:01:43]} Qc7 {[%emt 0:00:34]} 24. a4 {[%emt 0:16:49]} Qxc3+ {[%emt 0:38:01]} 25. Qxc3 {[%emt 0:00:06]} Rxc3 {[%emt 0:00:03]} 26. Rxd6 {[%emt 0:03:51]} Rb3 {[%emt 0:04:03]} (26... bxa4 $14 27. Bxa6 (27. Rxa6 Rfc8 $11) 27... a3) 27. Rxa6 $16 {[%emt 0:13:14]} Rxb4 {[%emt 0:01:24]} 28. axb5 {[%emt 0:00:29]} Rxe4+ {[%emt 0:03:41]} 29. Be2 {[%emt 0:00:06]} Rb4 {[%emt 0:08:08] [#]} 30. Rc6 $1 {[%emt 0:04:14]} Bf4 {[%emt 0:03:48][%cal Oh7h5]} 31. Bc4+ {[%emt 0:01:24]} Kh8 {[%emt 0:00:08]} 32. Kf1 {[%emt 0:05:27] b6 is the strong threat.} e4 {[%emt 0:00:35][%cal Oh7h5] [#]} 33. Re1 $1 {[%emt 0:00:59]} e3 {[%emt 0:02:00]} 34. fxe3 {[%emt 0:01:20]} Bg3 {[%emt 0:00:02][%csl LRe1,LRh4]} 35. Rd1 {[%emt 0:00:43] Hoping for b6.} h5 $2 {[%emt 0:02:44] Black cannot hold the game after this.} ({Better is} 35... Rb2 $14) 36. Rd5 $18 {[%emt 0:01:38][%cal Rd5h5]} ({Don't play} 36. gxh5 Kh7 37. Rd7 Kh6) 36... Be5 {[%emt 0:00:37]} 37. gxh5 {[%emt 0:01:05]} Kh7 {[%emt 0:00:47]} 38. Kg2 {[%emt 0:00:45] Against Bg3} Kh6 $2 {[%emt 0:00:22]} (38... Ra8 39. b6 Rb8) 39. Rxe5 {[%emt 0:06:16] Threatens to win with Re7. White is clearly winning.} Rxc4 {[%emt 0:00:20]} 40. Rxc4 {[%emt 0:00:04]} fxe5 {[%emt 0:00:06][%mdl 4096] Endgame KR-KR} 41. b6 {[%emt 0:30:26][%cal Bb5b6,Bb6b7][%mdl 32]} Rb8 {[%emt 0:33:02]} 42. Rb4 {[%emt 0:00:44]} g5 {[%emt 0:00:00]} 43. hxg6 {[%emt 0:00:00]} Kxg6 {[%emt 0:00:00]} 44. b7 {[%emt 0:00:00]} Kf5 {[%emt 0:00:00]} 45. Kf2 {[%emt 0:00:00]} Kg6 {[%emt 0:00:00]} 46. Kf3 {[%emt 0:00:00]} Kf5 {[%emt 0:00:00]} 47. Rb5 {[%emt 0:00:00]} Kg6 {[%emt 0:00:00]} 48. Ke4 {[%emt 0:00:00] Weighted Error Value: White=0.12 (very precise) /Black=0.29 (precise)} 1-0